fUSD/lending_fUSD_20260221
["ID","MTS","AMOUNT","RATE_DAILY","PERIOD"]
[406304848,1771711845780,-2379.27173025,0.00016195,2]
[406304850,1771711845790,-150.0,0.00016244,2]
[406304852,1771711845799,-150.0,0.00016244,2]
[406304854,1771711845808,-187.7959083,0.00016244,2]
[406304856,1771711845817,-629.0,0.00016244,2]
[406304858,1771711845826,-150.0,0.00016244,2]
[406304860,1771711845836,-150.0,0.00016244,2]
[406304862,1771711845845,-1210.09,0.00016273,2]
[406304864,1771711845855,-175.0,0.00016299,2]
[406304866,1771711845864,-150.0,0.00016299,2]
[406304869,1771711845874,-150.0,0.00016299,2]
[406304871,1771711845883,-150.0,0.00016353,2]
[406304873,1771711845892,-150.0,0.00016353,2]
[406304875,1771711845901,-150.0,0.00016408,2]
[406304878,1771711845911,-38.56366577,0.00016408,2]
[406304913,1771712691263,189.77,0.000104,2]
[406304933,1771713031456,-187.39,0.00013619,2]
[406304934,1771713031465,-262.0,0.00013619,2]
[406304935,1771713031475,-166.294205,0.00014984,7]
[406304936,1771713031484,-86.31899933,0.00015,2]
[406304937,1771713031495,-163.68100067,0.00015,2]
[406304938,1771713031505,-1500.0,0.00015056,2]
[406304939,1771713031514,-4764.94500649,0.0001512,2]
[406304940,1771713031523,-1200.0,0.00015148,2]
[406304941,1771713031533,-1000.0,0.00015149,2]
[406304942,1771713031543,-300.0,0.00015359,2]
[406304943,1771713031552,-1203.806,0.0001536,2]
[406304944,1771713031561,-152.665,0.0001536,2]
[406304945,1771713031570,-7255.26879543,0.00015474,2]
[406304946,1771713031579,-2425.8065319,0.00015474,2]
[406304947,1771713031588,-666.0,0.00015573,2]
[406304948,1771713031598,-666.0,0.00015573,2]
[406304949,1771713031607,-300.0,0.00015573,2]
[406304950,1771713031616,-408.3721,0.00015574,2]
[406304951,1771713031626,-14735.6246,0.00015574,2]
[406304952,1771713031636,-428.6482,0.00015574,2]
[406304954,1771713031645,-151.0,0.00015665,2]
[406304956,1771713031654,-151.0,0.00015665,2]
[406304958,1771713031663,-151.0,0.00015665,2]
[406304960,1771713031673,-151.0,0.00015665,2]
[406304962,1771713031682,-151.0,0.00015665,2]
[406304964,1771713031691,-151.0,0.00015665,2]
[406304965,1771713031700,-151.0,0.00015665,2]
[406304966,1771713031710,-151.0,0.00015665,2]
[406304967,1771713031719,-151.0,0.00015665,2]
[406304968,1771713031728,-151.0,0.00015665,2]
[406304969,1771713031738,-151.0,0.00015665,2]
[406304970,1771713031748,-151.0,0.00015665,2]
[406304971,1771713031757,-151.0,0.00015665,2]
[406304972,1771713031766,-151.0,0.00015665,2]
[406304973,1771713031776,-151.0,0.00015665,2]
[406304974,1771713031785,-151.0,0.00015665,2]
[406304975,1771713031794,-151.0,0.00015665,2]
[406304976,1771713031803,-151.0,0.00015665,2]
[406304977,1771713031812,-151.0,0.00015665,2]
[406304978,1771713031821,-151.0,0.00015665,2]
[406304979,1771713031831,-151.0,0.00015665,2]
[406304980,1771713031840,-151.0,0.00015665,2]
[406304981,1771713031849,-151.0,0.00015665,2]
[406304982,1771713031858,-151.0,0.00015665,2]
[406304983,1771713031868,-151.0,0.00015665,2]
[406304984,1771713031877,-151.0,0.00015665,2]
[406304985,1771713031887,-151.0,0.00015665,2]
[406304986,1771713031896,-191.79984712,0.00015665,2]
[406304987,1771713031906,-170.97074238,0.00015674,2]
[406304988,1771713031915,-500.0,0.00015693,2]
[406304989,1771713031928,-7255.26879536,0.00015745,2]
[406304990,1771713031937,-2425.80653183,0.00015745,2]
[406304991,1771713031947,-156.268,0.00015773,2]
[406304992,1771713031956,-1000.0,0.00015774,2]
[406304993,1771713031965,-516.0,0.00016,2]
[406304994,1771713031975,-256.55,0.00016007,2]
[406304995,1771713031987,-7255.26879536,0.00016017,2]
[406304996,1771713031997,-2425.80653183,0.00016017,2]
[406304997,1771713032006,-173.74378417,0.00016037,2]
[406304998,1771713032016,-194.0,0.00016134,2]
[406304999,1771713032026,-200.0,0.00016134,2]
[406305000,1771713032035,-500.0,0.00016134,2]
[406305001,1771713032044,-150.0,0.00016134,2]
[406305002,1771713032053,-161.43633423,0.00016134,2]
[406305003,1771713032062,-200.0,0.00016134,2]
[406305004,1771713032072,-3579.5291043,0.00016152,2]
[406305005,1771713032081,-911.3844237,0.00016152,2]
[406305006,1771713032090,-16695.3339358,0.00016152,2]
[406305007,1771713032101,-1243.5321415,0.00016152,2]
[406305008,1771713032111,-617.1623138,0.00016189,2]
[406305009,1771713032120,-250.0,0.00016216,2]
[406305010,1771713032129,-7255.26879536,0.00016288,2]
[406305011,1771713032139,-2425.80653183,0.00016288,2]
[406305012,1771713032148,-150.0,0.00016308,2]
[406305013,1771713032158,-150.0,0.00016308,2]
[406305014,1771713032167,-214.0,0.00016408,3]
[406305015,1771713032176,-150.0,0.00016408,3]
[406305016,1771713032185,-160.0,0.00016408,3]
[406305017,1771713032194,-233.97,0.00016438,30]
[406305018,1771713032204,-1210.09,0.00016467,2]
[406305019,1771713032214,-7255.26879536,0.0001656,2]
[406305020,1771713032223,-2425.80653183,0.0001656,2]
[406305021,1771713032232,-449.57695915,0.00016609,2]
[406305022,1771713032242,-1680.0,0.0001666,2]
[406305023,1771713032251,-1210.09,0.00016661,2]
[406305024,1771713032260,-167.16,0.00016712,2]
[406305025,1771713032270,-500.0,0.00016735,2]
[406305026,1771713032279,-3240.0,0.00016757,2]
[406305027,1771713032289,-420.0,0.00016803,2]
[406305028,1771713032298,-7255.26879536,0.00016831,2]
[406305029,1771713032308,-2425.80653183,0.00016831,2]
[406305030,1771713032317,-1210.09,0.00016854,2]
[406305031,1771713032328,-500.0,0.00016999,2]
[406305032,1771713032337,-431.19331106,0.00016999,2]
[406305033,1771713032347,-500.0,0.00016999,2]
[406305034,1771713032356,-500.0,0.00016999,2]
[406305035,1771713032366,-500.0,0.00016999,2]
[406305036,1771713032376,-500.0,0.00016999,2]
[406305037,1771713032385,-500.0,0.00016999,2]
[406305038,1771713032395,-500.0,0.00016999,2]
[406305039,1771713032404,-300.0,0.00017,2]
[406305040,1771713032414,-30505.72127674,0.00017,2]
[406305041,1771713032423,-1000.0,0.00017043,2]
[406305042,1771713032432,-1210.09,0.00017048,2]
[406305043,1771713032442,-951.0,0.00017077,2]
[406305044,1771713032452,-951.0,0.00017089,2]
[406305045,1771713032461,-7255.26879536,0.00017103,2]
[406305046,1771713032470,-2425.80653183,0.00017103,2]
[406305047,1771713032480,-166.66,0.00017133,2]
[406305048,1771713032489,-951.0,0.00017211,2]
[406305049,1771713032498,-951.0,0.00017228,2]
[406305050,1771713032507,-1210.09,0.00017242,2]
[406305051,1771713032516,-155.90164677,0.00017249,2]
[406305052,1771713032525,-167.89674462,0.00017253,2]
[406305053,1771713032535,-693.3919763,0.00017253,2]
[406305054,1771713032544,-721.12765535,0.00017253,2]
[406305055,1771713032553,-500.0,0.00017253,2]
[406305056,1771713032563,-500.0,0.00017253,2]
[406305057,1771713032572,-500.0,0.00017253,2]
[406305058,1771713032582,-500.0,0.00017253,2]
[406305059,1771713032591,-500.0,0.00017253,2]
[406305060,1771713032600,-500.0,0.00017253,2]
[406305061,1771713032609,-500.0,0.00017253,2]
[406305062,1771713032618,-500.0,0.00017253,2]
[406305063,1771713032628,-500.0,0.00017253,2]
[406305064,1771713032637,-500.0,0.00017253,2]
[406305065,1771713032646,-500.0,0.00017253,2]
[406305066,1771713032656,-719.04747942,0.00017308,2]
[406305067,1771713032665,-155.0,0.0001735,2]
[406305068,1771713032674,-745.65223616,0.00017363,2]
[406305069,1771713032683,-7255.26879536,0.00017374,2]
[406305070,1771713032696,-2425.80653183,0.00017374,2]
[406305071,1771713032706,-773.2413689,0.00017418,2]
[406305072,1771713032715,-951.0,0.00017428,2]
[406305073,1771713032724,-1210.09,0.00017436,2]
[406305074,1771713032733,-801.85129955,0.00017473,2]
[406305075,1771713032742,-389.35,0.00017523,2]
[406305076,1771713032752,-831.51979763,0.00017528,2]
[406305077,1771713032761,-862.28603014,0.00017583,2]
[406305078,1771713032771,-1210.09,0.00017629,2]
[406305079,1771713032781,-951.0,0.00017636,2]
[406305080,1771713032790,-894.19061326,0.00017638,2]
[406305081,1771713032799,-951.0,0.0001764,2]
[406305082,1771713032809,-7255.26879536,0.00017646,2]
[406305083,1771713032819,-2425.80653183,0.00017646,2]
[406305084,1771713032830,-2030.0,0.00017683,2]
[406305085,1771713032840,-951.0,0.00017691,2]
[406305086,1771713032850,-927.27566595,0.00017693,2]
[406305087,1771713032861,-166.66,0.00017699,2]
[406305088,1771713032872,-961.58486559,0.00017748,2]
[406305089,1771713032881,-951.0,0.00017748,2]
[406305090,1771713032891,-951.0,0.00017757,2]
[406305091,1771713032901,-997.16350561,0.00017803,2]
[406305092,1771713032911,-1210.09,0.00017823,2]
[406305093,1771713032920,-951.0,0.00017826,2]
[406305094,1771713032929,-388.1645424,0.000179,2]
[406305095,1771713032939,-4123.4957908,0.000179,2]
[406305096,1771713032948,-174.43515578,0.000179,2]
[406305097,1771713032958,-190.5430067,0.000179,3]
[406305098,1771713032968,-7255.26879536,0.00017917,2]
[406305099,1771713032981,-2425.80653183,0.00017917,2]
[406305100,1771713032990,-214.0,0.00017917,3]
[406305101,1771713033000,-951.0,0.00017941,2]
[406305102,1771713033009,-348.0,0.00017973,2]
[406305103,1771713033019,-207.867756,0.00017981,7]
[406305104,1771713033029,-233.13055887,0.00017997,2]
[406305105,1771713033039,-300.0,0.00017999,2]
[406305106,1771713033048,-300.0,0.00017999,2]
[406305107,1771713033060,-150.0,0.00017999,2]
[406305108,1771713033069,-150.0,0.00017999,2]
[406305109,1771713033078,-150.0,0.00017999,2]
[406305110,1771713033088,-150.0,0.00017999,2]
[406305111,1771713033097,-292.45932296,0.00017999,2]
[406305112,1771713033106,-666.0,0.00017999,2]
[406305113,1771713033115,-500.0,0.00017999,2]
[406305114,1771713033124,-500.0,0.00017999,2]
[406305115,1771713033134,-410.30491997,0.00017999,2]
[406305116,1771713033143,-808.36925939,0.00017999,2]
[406305117,1771713033152,-808.36925939,0.00017999,2]
[406305118,1771713033162,-808.36925939,0.00017999,2]
[406305119,1771713033172,-808.36925939,0.00017999,2]
[406305120,1771713033182,-808.36925939,0.00017999,2]
[406305121,1771713033191,-808.36925939,0.00017999,2]
[406305122,1771713033403,-808.36925939,0.00017999,2]
[406305123,1771713033414,-808.36925939,0.00017999,2]
[406305124,1771713033423,-808.36925939,0.00017999,2]
[406305125,1771713033432,-808.36925939,0.00017999,2]
[406305126,1771713033441,-808.36925939,0.00017999,2]
[406305127,1771713033450,-808.36925939,0.00017999,2]
[406305128,1771713033459,-808.36925939,0.00017999,2]
[406305129,1771713033468,-808.36925939,0.00017999,2]
[406305130,1771713033478,-808.36925939,0.00017999,2]
[406305131,1771713033487,-808.36925939,0.00017999,2]
[406305132,1771713033495,-890.6010619,0.00017999,2]
[406305133,1771713033505,-890.6010619,0.00017999,2]
[406305134,1771713033514,-890.6010619,0.00017999,2]
[406305135,1771713033523,-890.6010619,0.00017999,2]
[406305136,1771713033532,-890.6010619,0.00017999,2]
[406305137,1771713033542,-890.6010619,0.00017999,2]
[406305138,1771713033551,-890.6010619,0.00017999,2]
[406305139,1771713033560,-890.6010619,0.00017999,2]
[406305140,1771713033569,-890.6010619,0.00017999,2]
[406305141,1771713033578,-150.0,0.00018,7]
[406305142,1771713033590,-1281887.94606811,0.00018,2]
[406305143,1771713033612,-1381.34,0.00018,2]
[406305152,1771713037642,-1034.2623138,0.000179,2]
[406305153,1771713037655,-484.51584678,0.000179,2]
[406305154,1771713037665,-789.62727179,0.00018,2]
[406305155,1771713037676,-1605.0,0.00018,2]
[406305159,1771713039710,-528.93542812,0.00018,2]
[406305160,1771713039721,-287.96,0.00018,2]
[406305161,1771713039733,-613.62007937,0.00018,2]
[406305162,1771713039770,-1485759.76491713,0.00018,2]
[406305163,1771713039780,-629716.07967539,0.00018,2]
[406305164,1771713039790,-1210.09,0.00018017,2]
[406305165,1771713039799,-303.0,0.000181,2]
[406305166,1771713039810,-951.0,0.00018145,2]
[406305167,1771713039819,-989.0,0.000182,2]
[406305168,1771713039830,-309.0,0.000182,2]
[406305169,1771713039841,-951.0,0.00018207,2]
[406305170,1771713039851,-1210.09,0.00018211,2]
[406305171,1771713039861,-951.0,0.00018213,2]
[406305172,1771713039871,-951.0,0.00018259,2]
[406305173,1771713039881,-951.0,0.00018263,2]
[406305174,1771713039890,-166.66,0.00018264,2]
[406305175,1771713039899,-951.0,0.00018284,2]
[406305176,1771713039908,-951.0,0.00018305,2]
[406305177,1771713039918,-951.0,0.00018319,2]
[406305178,1771713039927,-412.0,0.00018323,2]
[406305179,1771713039936,-587.0,0.00018384,2]
[406305180,1771713039946,-951.0,0.00018396,2]
[406305181,1771713039956,-1210.09,0.00018404,2]
[406305182,1771713039965,-951.0,0.00018472,2]
[406305183,1771713039975,-500.0,0.0001854,2]
[406305184,1771713039988,-332.93865157,0.0001854,2]
[406305185,1771713039997,-202.53221939,0.0001854,2]
[406305186,1771713040006,-460.37383719,0.0001854,2]
[406305187,1771713040015,-500.0,0.0001854,2]
[406305188,1771713040025,-500.0,0.0001854,2]
[406305189,1771713040035,-500.0,0.0001854,2]
[406305190,1771713040044,-500.0,0.0001854,2]
[406305191,1771713040054,-951.0,0.00018681,2]
[406305192,1771713040063,-951.0,0.00018691,2]
[406305193,1771713040072,-951.0,0.00018715,2]
[406305194,1771713040081,-166.66,0.0001883,2]
[406305195,1771713040091,-155.0,0.00018928,2]
[406305196,1771713040100,-1000.0,0.00018936,2]
[406305197,1771713040110,-350.0,0.00019,2]
[406305198,1771713040119,-200.0,0.00019082,2]
[406305199,1771713040128,-514.03988287,0.00019088,2]
[406305200,1771713040138,-1000.0,0.00019088,2]
[406305201,1771713040147,-150.0,0.00019178,2]
[406305202,1771713040156,-500.0,0.0001918,2]
[406305203,1771713040165,-350.0,0.00019262,2]
[406305204,1771713040175,-350.0,0.00019263,2]
[406305205,1771713040184,-166.66,0.00019395,2]
[406305206,1771713040193,-214.0,0.00019427,3]
[406305207,1771713040202,-3725.2325348,0.00019572,2]
[406305208,1771713040211,-798.7009023,0.00019572,2]
[406305209,1771713040220,-160.0,0.00019594,3]
[406305210,1771713040229,-512.68335404,0.00019636,2]
[406305211,1771713040238,-6562.6947821,0.00019667,2]
[406305213,1771713040248,-389.35,0.00019713,2]
[406305215,1771713040257,-250.0,0.00019726,2]
[406305216,1771713040266,-1709.80454793,0.0001978,2]
[406305217,1771713040275,-350.0,0.00019849,2]
[406305218,1771713040285,-166.66,0.00019961,2]
[406305219,1771713040294,-2000.0,0.0001998,2]
[406305220,1771713040303,-2000.0,0.0001998,2]
[406305221,1771713040312,-2000.0,0.0001998,2]
[406305222,1771713040322,-747.8093786,0.00019992,2]
[406305223,1771713040332,-1784.647812,0.000201,2]
[406305224,1771713040341,-2000.0,0.000201,2]
[406305225,1771713040351,-189.72,0.000201,2]
[406305226,1771713040362,-2000.0,0.0002011,2]
[406305227,1771713040373,-240.0,0.00020113,2]
[406305228,1771713040382,-2000.0,0.0002012,2]
[406305229,1771713040391,-2696.76491,0.0002013,2]
[406305230,1771713040402,-2000.0,0.00020184,2]
[406305231,1771713040412,-2000.0,0.00020184,2]
[406305232,1771713040421,-2000.0,0.00020184,2]
[406305233,1771713040430,-429.95386762,0.000202,2]
[406305234,1771713040439,-1160.53365002,0.000202,2]
[406305235,1771713040449,-852.19769001,0.000202,2]
[406305236,1771713040458,-265.93928549,0.00020274,2]
[406305237,1771713040467,-831.211732,0.00020335,2]
[406305238,1771713040475,-178.2142602,0.00020335,2]
[406305239,1771713040485,-233.97,0.00020467,30]
[406305240,1771713040495,-150.0,0.00020505,3]
[406305241,1771713040504,-155.69,0.00020548,2]
[406305242,1771713040513,-167.0,0.00020822,30]
[406305243,1771713040522,-175.0,0.00020822,30]
[406305244,1771713040532,-180.0,0.00020822,30]
[406305245,1771713040541,-177.0,0.00020822,30]
[406305246,1771713040551,-153.0,0.00020822,30]
[406305247,1771713040566,-158.0,0.00020822,30]
[406305248,1771713040575,-158.0,0.00020822,30]
[406305249,1771713040585,-159.0,0.00020822,30]
[406305250,1771713040594,-160.0,0.00020822,30]
[406305251,1771713040604,-168.0,0.00020822,30]
[406305252,1771713040613,-1000.0,0.0002083,2]
[406305253,1771713040623,-350.0,0.00020848,2]
[406305254,1771713040632,-214.0,0.00020936,3]
[406305255,1771713040641,-300.0,0.00020999,2]
[406305256,1771713040650,-666.0,0.00020999,2]
[406305257,1771713040659,-666.0,0.00020999,2]
[406305258,1771713040669,-300.0,0.00020999,2]
[406305259,1771713040678,-300.0,0.00020999,2]
[406305260,1771713040687,-1197.42575804,0.00021,2]
[406305261,1771713040696,-197.64508144,0.00021,2]
[406305262,1771713040706,-110374.60423123,0.00021,2]
[406305263,1771713040715,-400.0,0.00021,2]
[406305264,1771713040724,-350.0,0.00021079,2]
[406305265,1771713040734,-350.0,0.00021093,2]
[406305266,1771713040743,-700.0,0.00021341,2]
[406305267,1771713040752,-188.0,0.0002137,30]
[406305268,1771713040761,-222.97430806,0.000215,2]
[406305269,1771713040770,-157.04021352,0.00021538,2]
[406305270,1771713040780,-389.35,0.00021904,2]
[406305271,1771713040789,-2000.0,0.00021917,2]
[406305272,1771713040799,-3045.01,0.00021918,2]
[406305273,1771713040808,-5000.0,0.00021918,2]
[406305274,1771713040817,-150.0,0.00021918,2]
[406305275,1771713040826,-500.0,0.00021918,2]
[406305276,1771713040835,-500.0,0.00021973,2]
[406305277,1771713040844,-300.0,0.00021999,2]
[406305278,1771713040853,-132434.68950569,0.00022,2]
[406305279,1771713040862,-163.53,0.00022,2]
[406305280,1771713040871,-160.0,0.00022,2]
[406305281,1771713040881,-204.02,0.00022,7]
[406305282,1771713040890,-167.45,0.00022,2]
[406305283,1771713040899,-6775.67,0.00022,2]
[406305284,1771713040908,-350.0,0.00022004,2]
[406305285,1771713040918,-500.0,0.00022028,2]
[406305286,1771713040928,-155.0,0.00022082,2]
[406305287,1771713040937,-500.70947646,0.00022082,2]
[406305288,1771713040947,-496.42397569,0.000221,2]
[406305289,1771713040956,-350.0,0.00022102,2]
[406305290,1771713040967,-241.22058511,0.0002211,2]
[406305291,1771713040977,-256.55,0.00022205,2]
[406305292,1771713040989,-214.0,0.00022445,3]
[406305293,1771713040998,-249.441308,0.00022477,30]
[406305294,1771713041007,-3791.065805,0.00022478,30]
[406305295,1771713041016,-4123.49579078,0.00022519,2]
[406305296,1771713041026,-525.36364149,0.0002271,2]
[406305297,1771713041035,-1000.0,0.00022724,2]
[406305298,1771713041044,-775.47832561,0.00022731,2]
[406305299,1771713041055,-160.0,0.0002278,3]
[406305300,1771713041064,-304887.24803165,0.00023,2]
[406305301,1771713041074,-160.0,0.00023,2]
[406305302,1771713041083,-151.0,0.00023,2]
[406305303,1771713041092,-151.0,0.00023,2]
[406305304,1771713041101,-151.0,0.00023,2]
[406305305,1771713041110,-370.744883,0.00023,2]
[406305306,1771713041119,-151.0,0.00023,2]
[406305307,1771713041129,-370.744883,0.00023,2]
[406305308,1771713041138,-370.744883,0.00023,2]
[406305309,1771713041147,-370.744883,0.00023,2]
[406305310,1771713041156,-151.0,0.00023,2]
[406305311,1771713041165,-151.0,0.00023,2]
[406305312,1771713041175,-151.0,0.00023,2]
[406305313,1771713041184,-151.0,0.00023,2]
[406305314,1771713041193,-151.0,0.00023,2]
[406305315,1771713041203,-496.794936,0.00023,2]
[406305316,1771713041212,-496.794936,0.00023,2]
[406305317,1771713041221,-496.794936,0.00023,2]
[406305318,1771713041230,-496.794936,0.00023,2]
[406305319,1771713041240,-151.0,0.00023,2]
[406305320,1771713041249,-151.0,0.00023,2]
[406305321,1771713041258,-680.208125,0.00023,2]
[406305322,1771713041267,-680.208125,0.00023,2]
[406305323,1771713041276,-325.537551,0.00023,2]
[406305324,1771713041285,-680.208125,0.00023,2]
[406305325,1771713041295,-325.537551,0.00023,2]
[406305326,1771713041304,-680.208125,0.00023,2]
[406305327,1771713041313,-325.537551,0.00023,2]
[406305328,1771713041322,-325.537551,0.00023,2]
[406305329,1771713041331,-151.0,0.00023,2]
[406305330,1771713041340,-151.0,0.00023,2]
[406305331,1771713041349,-151.0,0.00023,2]
[406305332,1771713041358,-1276.0,0.00023131,2]
[406305333,1771713041367,-1209.0,0.00023131,2]
[406305334,1771713041377,-1175.519,0.00023131,2]
[406305335,1771713041386,-5976.0,0.00023131,2]
[406305336,1771713041395,-667.88518278,0.000232,2]
[406305337,1771713041404,-200.0,0.000235,2]
[406305338,1771713041414,-252.7,0.00023778,2]
[406305339,1771713041423,-3614.62,0.00023919,2]
[406305340,1771713041433,-214.0,0.00023954,3]
[406305341,1771713041442,-1025.79563103,0.00024,2]
[406305342,1771713041452,-1240.39290392,0.00024,2]
[406305343,1771713041461,-516.0,0.00024,9]
[406305344,1771713041470,-389.35,0.00024094,2]
[406305345,1771713041479,-293.32,0.00024148,2]
[406305346,1771713041488,-423.76381575,0.0002421,2]
[406305347,1771713041648,-6775.67,0.000243,2]
[406305348,1771713041659,-204.02,0.000244,7]
[406305349,1771713041668,-151.0,0.00024435,2]
[406305350,1771713041678,-151.0,0.00024435,2]
[406305351,1771713041687,-151.0,0.00024435,2]
[406305352,1771713041696,-174.044366,0.00024435,2]
[406305353,1771713041705,-233.97,0.00024496,30]
[406305354,1771713041714,-150.0,0.00024601,3]
[406305355,1771713041723,-1229.63,0.00024658,2]
[406305356,1771713041732,-1000.0,0.00024658,2]
[406305357,1771713041742,-151.0,0.00024658,2]
[406305358,1771713041752,-151.0,0.00024658,2]
[406305359,1771713041762,-151.0,0.00024658,2]
[406305360,1771713041774,-151.0,0.00024658,2]
[406305361,1771713041784,-1116.22294843,0.00025,2]
[406305362,1771713041793,-207.94066833,0.00025,2]
[406305363,1771713041804,-1788.55597662,0.00025,2]
[406305364,1771713041814,-540.0,0.00025,2]
[406305365,1771713041824,-612.16982898,0.00025,2]
[406305366,1771713041833,-3050.78782243,0.00025,2]
[406305367,1771713041842,-167.66928281,0.00025,2]
[406305368,1771713041852,-10019.93662038,0.00025,2]
[406305369,1771713041862,-150.0,0.00025,2]
[406305370,1771713041871,-151.0,0.00025,2]
[406305371,1771713041883,-151.0,0.00025,2]
[406305372,1771713041893,-151.0,0.00025,2]
[406305373,1771713041903,-155.9611,0.00025,2]
[406305374,1771713041912,-151.0,0.00025,2]
[406305375,1771713041922,-151.0,0.00025,2]
[406305376,1771713041931,-151.0,0.00025,2]
[406305377,1771713041940,-151.0,0.00025,2]
[406305378,1771713041950,-151.0,0.00025,2]
[406305379,1771713041959,-151.000004,0.00025,2]
[406305380,1771713041968,-151.0,0.00025,2]
[406305381,1771713041978,-259.859656,0.00025,2]
[406305382,1771713041989,-151.0,0.00025,2]
[406305383,1771713041998,-151.0,0.00025,2]
[406305384,1771713042007,-151.0,0.00025,2]
[406305385,1771713042016,-151.0,0.00025,2]
[406305386,1771713042025,-151.0,0.00025,2]
[406305387,1771713042034,-426.745295,0.00025,2]
[406305388,1771713042044,-426.745295,0.00025,2]
[406305389,1771713042053,-426.745295,0.00025,2]
[406305390,1771713042062,-426.745295,0.00025,2]
[406305391,1771713042071,-170.97074238,0.00025434,2]
[406305392,1771713042080,-214.0,0.00025464,3]
[406305393,1771713042089,-804.17102365,0.0002547,2]
[406305394,1771713042098,-167.45,0.00025844,7]
[406305395,1771713042108,-160.0,0.00025967,3]
[406305396,1771713042117,-602.21629743,0.0002599,2]
[406305397,1771713042126,-150.0,0.00025998,2]
[406305398,1771713042135,-150.135,0.00025998,2]
[406305399,1771713042144,-150.153,0.00025998,2]
[406305400,1771713042153,-173.628,0.00025998,2]
[406305401,1771713042162,-150.068,0.00025998,2]
[406305402,1771713042171,-267.735,0.00025998,2]
[406305403,1771713042180,-216.96045593,0.00026,2]
[406305404,1771713042189,-211.0,0.00026,2]
[406305405,1771713042198,-256.55,0.00026014,2]
[406305406,1771713042208,-1276.0,0.00026131,2]
[406305407,1771713042218,-1209.0,0.00026131,2]
[406305408,1771713042227,-1039.0,0.00026131,2]
[406305409,1771713042237,-5976.0,0.00026131,2]
[406305410,1771713042247,-157.04021352,0.00026218,2]
[406305411,1771713042257,-389.35,0.00026285,120]
[406305412,1771713042266,-216.53518297,0.000263,2]
[406305413,1771713042275,-27539.4783723,0.000264,2]
[406305415,1771713042285,-306.70242982,0.00026683,2]
[406305417,1771713042294,-214.0,0.00026973,3]
[406305419,1771713042303,-250.0,0.00027,2]
[406305421,1771713042312,-1036.96878042,0.00027,2]
[406305422,1771713042321,-530.0,0.00027,2]
[406305423,1771713042331,-2000.0,0.00027,2]
[406305424,1771713042340,-2488.652857,0.0002701,2]
[406305425,1771713042350,-3697.2,0.00027123,2]
[406305426,1771713042359,-4123.49579078,0.00027138,2]
[406305427,1771713042368,-6775.67,0.000272,2]
[406305428,1771713042377,-150.0,0.00027369,2]
[406305429,1771713042387,-4121.26232887,0.0002739,2]
[406305430,1771713042396,-8142.60566174,0.0002739,2]
[406305431,1771713042406,-1229.63,0.00027397,2]
[406305432,1771713042415,-300.0,0.00027397,2]
[406305433,1771713042424,-1000.0,0.00027397,20]
[406305434,1771713042433,-520.81,0.00027397,2]
[406305435,1771713042442,-151.0,0.00027397,2]
[406305437,1771713042452,-151.0,0.00027397,2]
[406305439,1771713042461,-232.67043,0.00027397,2]
[406305440,1771713042470,-232.67043,0.00027397,2]
[406305441,1771713042480,-232.67043,0.00027397,2]